[Event "SixDays Budapest January-IMA 2023"]
[Site "Budapest"]
[Date "2023.01.28"]
[Round "9.4"]
[White "Orso, Miklos"]
[Black "Polyik, Peter"]
[Result "0-1"]
[ECO "A06"]
[WhiteElo "2256"]
[BlackElo "2323"]
[Annotator "TA"]
[PlyCount "112"]
[EventDate "2023.01.23"]
[EventType "tourn"]
[EventCountry "HUN"]
[SourceTitle "playchess.com"]
[Source "ChessBase"]
[SourceQuality "1"]
[TimeControl "5400+30"]

{[%evp 21,112,2,0,0,0,0,0,0,0,-29,-3,-44,-45,-87,-22,-32,-27,-27,-18,-30,-18,-70,-85,-77,-86,-114,-139,-122,-110,-109,-66,-78,-33,-50,-60,-63,-27,-105,-119,-130,-126,-203,-130,-215,-211,-278,-270,-283,-266,-281,-243,-348,-346,-378,-365,-338,-295,-500,-340,-308,-312,-794,-760,-798,-781,-1013,-1120,-1100,-964,-967,-959,-699,-527,-1046,-1014,-1936,-2041,-1913,-1557,-1543,-1557,-29970,-29971,-2387,-2247,-29972,-29972,-29972,-29956,-29969,-6303,-29983,-29984]} 1. Nf3 {[%emt 0:00:04]} d5 {[%emt 0:00:09]} 2. b3 {[%emt 0:00:07]} Bf5 {[%emt 0:00:58]} 3. Bb2 {[%emt 0:00:10]} e6 {[%emt 0:00:21]} 4. g3 {[%emt 0:00:51]} h6 {[%emt 0:01:28]} 5. Bg2 {[%emt 0:00:06]} Nf6 {[%emt 0:00:09]} 6. O-O {[%emt 0:00:31]} Be7 {[%emt 0:00:27]} 7. d3 {[%emt 0:00:48]} O-O {[%emt 0:00:10]} 8. Nbd2 {[%emt 0:00:07]} c6 {[%emt 0:02:25]} 9. Qe1 {[%emt 0:00:30]} Bh7 {[%emt 0:01:38]} 10. e4 {[%emt 0:00:32]} a5 {[%emt 0:01:54]} 11. a3 {[%emt 0:03:33]} Nbd7 {[%emt 0:02:52]} 12. Qe2 {[%emt 0:00:10] A07: Réti Opening: New York and Capablanca Systems.} b5 {[%emt 0:02:09]} 13. Rfe1 {[%emt 0:06:04]} Qb6 {[%emt 0:03:59]} 14. h3 {[%emt 0:06:05] [#] The position is equal.} Rfd8 $146 {[%emt 0:03:37]} ({Predecessor:} 14... b4 15. a4 Rfd8 16. Rad1 Rac8 17. Kh2 Qa6 18. Ng1 Nb6 19. f4 dxe4 20. Nxe4 Nbd5 {1-0 Onischuk,V (2498)-Pavlov,M (2364) UKR-ch sf Alushta 2011 (6)}) 15. Kh1 {[%emt 0:06:10]} Rac8 {[%emt 0:17:28]} 16. Nh2 {[%emt 0:04:03]} dxe4 {[%emt 0:04:13]} 17. dxe4 {[%emt 0:00:38]} e5 {[%emt 0:00:11]} ({Black should play} 17... a4 $17) 18. Nhf1 {[%emt 0:02:33]} Bc5 {[%emt 0:07:40]} 19. Ne3 {[%emt 0:04:49]} Bd4 {[%emt 0:05:53]} 20. Bxd4 {[%emt 0:04:40]} exd4 {[%emt 0:00:25]} 21. Ng4 {[%emt 0:15:50]} (21. Nf5 $11) 21... Nxg4 $15 {[%emt 0:09:48]} 22. hxg4 {[%emt 0:01:53]} Ne5 {[%emt 0:01:19]} 23. f4 {[%emt 0:00:11]} d3 {[%emt 0:00:05]} 24. cxd3 {[%emt 0:00:05]} Nxd3 {[%emt 0:00:04]} 25. Rf1 {[%emt 0:00:16]} Rc7 {[%emt 0:00:29][%cal Bc8c7,Bc7d7,Bd7d4][%mdl 32] Black has more active pieces.} 26. e5 {[%emt 0:05:45]} Rcd7 $36 {[%emt 0:07:39][%cal Od3f4][%mdl 2048] Hoping for ...Nxf4! Black is pushing.} 27. Ne4 $1 {[%emt 0:04:57]} Bxe4 {[%emt 0:01:34]} 28. Bxe4 {[%emt 0:00:12]} Rd4 {[%emt 0:03:08] White must now prevent ...Nc5.} 29. Bg2 {[%emt 0:12:19]} (29. e6 $11 fxe6 30. g5) 29... c5 $17 {[%emt 0:02:29] Black continues to play with concentration.} 30. Rab1 {[%emt 0:01:55]} Qe6 {[%emt 0:01:24]} 31. Kh2 {[%emt 0:07:03]} (31. Be4 $17) 31... f6 {[%emt 0:01:33]} 32. a4 {[%emt 0:01:57]} (32. Rbd1 $17) 32... b4 $19 {[%emt 0:02:38]} ({Worse is} 32... fxe5 33. axb5 e4 34. Ra1 $11) (32... bxa4 33. bxa4 fxe5 34. f5) 33. Qe3 {[%emt 0:07:13]} fxe5 {[%emt 0:03:40]} 34. f5 {[%emt 0:00:20]} Qf6 {[%emt 0:00:26]} 35. Be4 {[%emt 0:00:59]} Nf4 {[%emt 0:08:31][%cal Of4e2][%mdl 64] [#] Deflection} 36. Rb2 {[%emt 0:01:55]} (36. gxf4 $2 {perishes.} Qh4+ 37. Kg1 (37. Kg2 $2 Rxe4 38. Qg3 Rd2+ 39. Rf2 Rxf2+ {[%mdl 64] Deflection} 40. Qxf2 Qxg4+ 41. Kh2 Re2 $19) 37... Rxe4 38. Qxe4 Rd2 $19) (36. Rbe1 {was necessary.} Nd5 37. Bxd5+ R8xd5 38. Kh3) 36... Nd5 {[%emt 0:01:03]} 37. Qf3 {[%emt 0:00:02]} Nc3 {[%emt 0:00:21] White is weak on the dark squares} 38. Re1 {[%emt 0:00:53]} Qg5 {[%emt 0:03:02] And now ...Rd2+ would win.} 39. Kh3 $2 {[%emt 0:00:18]} (39. Rg2 {keeps fighting.}) 39... Rd1 {[%emt 0:00:43]} 40. Rxd1 {[%emt 0:00:21]} Rxd1 {[%emt 0:00:10]} 41. Rc2 $2 {[%emt 0:00:36]} (41. Bd3 h5 42. Bc4+ Kh7 43. Rh2) 41... Rd4 {[%emt 0:00:17]} 42. Bb7 {[%emt 0:00:56]} e4 {[%emt 0:00:30]} 43. Qf2 {[%emt 0:00:38]} e3 {[%emt 0:00:26]} 44. Qf3 {[%emt 0:00:01]} e2 {[%emt 0:01:40]} 45. Rxe2 {[%emt 0:00:01]} Nxe2 {[%emt 0:00:05]} 46. Qxe2 {[%emt 0:00:03][%mdl 4096] Endgame KQR-KQB} Kh7 {[%emt 0:00:38][%cal Oh6h5]} 47. Bc8 {[%emt 0:01:14]} Qc1 {[%emt 0:00:52] aiming for ...Qh1+.} 48. Qf3 {[%emt 0:01:02] Dodges Qh1+} Qd1 {[%emt 0:00:12]} 49. Qxd1 {[%emt 0:00:47]} Rxd1 {[%emt 0:00:04] KR-KB} 50. Be6 {[%emt 0:00:08]} g5 {[%emt 0:01:32]} 51. Kg2 {[%emt 0:00:33]} Kg7 {[%emt 0:00:28]} 52. Kf3 {[%emt 0:00:15]} Kf6 {[%emt 0:00:07] ( -> ...Ke5)} 53. Bc4 {[%emt 0:01:18]} Ke5 {[%emt 0:00:19]} 54. Ke3 {[%emt 0:00:28]} Rc1 {[%emt 0:00:14]} 55. Bf7 {[%emt 0:01:37]} Rc3+ {[%emt 0:00:05]} 56. Kf2 {[%emt 0:00:21] [#]} c4 $1 {[%emt 0:00:17] Weighted Error Value: White=0.97/Black=0.23 (precise)} 0-1

[Event "SixDays Budapest January-IMA 2023"]
[Site "Budapest"]
[Date "2023.01.28"]
[Round "9.5"]
[White "Ihnat, Marek"]
[Black "Leszko, Bence"]
[Result "1-0"]
[ECO "B29"]
[WhiteElo "2138"]
[BlackElo "2298"]
[Annotator "TA"]
[PlyCount "61"]
[EventDate "2023.01.23"]
[EventType "tourn"]
[EventCountry "HUN"]
[SourceTitle "playchess.com"]
[Source "ChessBase"]
[SourceQuality "1"]
[TimeControl "5400+30"]

{[%evp 10,61,39,27,34,25,13,24,100,112,196,200,197,87,105,113,103,58,61,63,57,30,41,36,27,24,60,48,124,94,123,106,154,90,115,120,226,135,123,145,282,181,229,200,485,366,372,373,365,350,675,572,29988,29989]} 1. e4 {[%emt 0:00:10]} c5 {[%emt 0:04:38]} 2. Nf3 {[%emt 0:00:11]} Nf6 {[%emt 0:01:22][%cal Bg8f6,Bf6d5,Bd5b4][%mdl 32]} 3. e5 {[%emt 0:00:09]} Nd5 {[%emt 0:00:04]} 4. Nc3 {[%emt 0:00:05]} e6 {[%emt 0:00:06]} 5. Ne4 {[%emt 0:00:06]} f5 {[%emt 0:00:08]} 6. Nc3 {[%emt 0:00:06]} Nb4 {[%emt 0:02:12] 6...Ne7 is a critical line. B29: Sicilian: 2 Nf3 Nf6 (Nimzowitsch Variation).} 7. d4 {[%emt 0:05:17]} cxd4 {[%emt 0:02:15]} 8. Nxd4 {[%emt 0:00:07] [#]} d6 $146 {[%emt 0:04:20]} (8... N8c6 $11 9. a3 Nxd4 10. axb4 Nc6) ({Predecessor:} 8... N8c6 9. Nxc6 bxc6 10. Be2 Qc7 11. Bf4 Be7 12. Bh5+ g6 13. Be2 g5 14. Be3 Qxe5 {0-1 Milliet,S (2382)-Clarke,B (2475) Paris Barreau 3rd 2022 (8)}) 9. exd6 $16 {[%emt 0:02:23] White is more active.} a6 {[%emt 0:21:08] Repels Ndb5} (9... Qxd6 $16 10. Ncb5 (10. Bb5+ N8c6 $14) 10... Qe5+ 11. Qe2 Qxe2+ 12. Bxe2 N8c6) 10. a3 $18 {[%emt 0:15:36]} N4c6 {[%emt 0:00:17]} 11. Nb3 {[%emt 0:14:27]} (11. Bf4 $18 {is more deadly.}) 11... Bxd6 {[%emt 0:00:46]} 12. Qh5+ {[%emt 0:02:56]} g6 {[%emt 0:00:30]} 13. Qh6 {[%emt 0:01:11]} Bf8 {[%emt 0:01:08]} 14. Qh3 {[%emt 0:01:57]} Bg7 {[%emt 0:00:55]} 15. Be2 {[%emt 0:01:34]} (15. Qg3 $5) 15... O-O {[%emt 0:01:43]} 16. Bh6 {[%emt 0:00:33]} b5 {[%emt 0:00:29]} 17. O-O {[%emt 0:01:25]} Qe7 {[%emt 0:00:42]} 18. Rad1 {[%emt 0:00:57]} Nd7 {[%emt 0:01:38]} (18... Bxh6 $1 $14 19. Qxh6 Ra7) 19. Rfe1 {[%emt 0:01:54]} Nde5 {[%emt 0:01:47]} 20. Bxg7 {[%emt 0:02:53]} Kxg7 {[%emt 0:00:27]} (20... Qxg7 $142 21. f4 Nc4) 21. Qe3 {[%emt 0:01:28]} (21. f4 $142 Nc4 22. Bxc4 bxc4 23. Nd2) 21... f4 {[%emt 0:04:43]} 22. Qc5 {[%emt 0:02:04]} Qg5 {[%emt 0:01:15]} (22... Qxc5 $16 23. Nxc5 Rd8) 23. f3 {[%emt 0:01:53]} ({Better is} 23. Ne4 $18 Qf5 24. Nd4 Nxd4 25. Qxd4 (25. Rxd4 Bb7 $15)) 23... Rf5 $16 {[%emt 0:00:43][%cal Oe5f3]} 24. Qf2 {[%emt 0:03:54]} (24. Qd6 {is interesting.} Ra7 25. Ne4 Qh4 26. Nbc5) 24... Qh6 {[%emt 0:08:06]} (24... Qe7 $16 25. Bd3 Nxd3 26. Rxd3 Ne5) 25. Rd6 {[%emt 0:03:58] Black must now prevent Bd3.} Rh5 {[%emt 0:01:21] [#]} (25... Qg5 $142 26. Red1 Qe7) 26. h3 $1 $18 {[%emt 0:00:19] Hoping for Ne4.} Ra7 $2 {[%emt 0:14:15] [#]} (26... Qg5 27. Ne4 Qe7) 27. Na5 $1 {[%emt 0:07:20][%mdl 576] Deflection} Rd7 {[%emt 0:03:27]} 28. Rxc6 {[%emt 0:00:16]} (28. Nxc6 Rxd6 29. Nxe5 Rxe5 $11) 28... Nxc6 {[%emt 0:00:06]} 29. Nxc6 {[%emt 0:00:04]} Rd2 $2 {[%emt 0:02:10]} (29... Qg5 30. Ne4 Qh4 31. Qxh4 Rxh4) 30. Ne4 {[%emt 0:03:17]} Rxc2 {[%emt 0:02:40]} 31. Qd4+ {Weighted Error Value: White=0.33/Black=0.74} 1-0